[Event "Early-Titled-Tuesday-Blitz-January-16-2024"]
[Site "Chess.com"]
[Date "2024.01.16"]
[Round "7"]
[White "Mops_2004"]
[Black "JSPrepz"]
[Result "1/2-1/2"]
[WhiteElo "2680"]
[BlackElo "2868"]
[TimeControl "180+1"]
[EndTime "9:22:21 PST"]
[Termination "Game drawn by agreement"]

1. Nf3 {[%clk 0:03:00.9]} 1... c5 {[%clk 0:02:59.4]} 2. c4 {[%clk 0:03:00.5]}
2... Nc6 {[%clk 0:02:58.8]} 3. Nc3 {[%clk 0:03:00.6]} 3... g6 {[%clk 0:02:58.8]}
4. e3 {[%clk 0:02:58.9]} 4... Bg7 {[%clk 0:02:59.2]} 5. d4 {[%clk 0:02:59]} 5...
d6 {[%clk 0:02:59.7]} 6. Be2 {[%clk 0:02:59]} 6... f5 {[%clk 0:02:59.7]} 7. O-O
{[%clk 0:02:49.1]} 7... Nf6 {[%clk 0:02:59.8]} 8. d5 {[%clk 0:02:36]} 8... Na5
{[%clk 0:02:55.6]} 9. a3 {[%clk 0:02:32.6]} 9... b6 {[%clk 0:02:50.4]} 10. Rb1
{[%clk 0:02:06.3]} 10... O-O {[%clk 0:02:44.8]} 11. b4 {[%clk 0:02:02.4]} 11...
Nb7 {[%clk 0:02:38.9]} 12. Bd3 {[%clk 0:01:54.1]} 12... Nh5 {[%clk 0:02:19]} 13.
Ne2 {[%clk 0:01:49.7]} 13... e5 {[%clk 0:02:17]} 14. dxe6 {[%clk 0:01:47.3]}
14... Bxe6 {[%clk 0:02:17.2]} 15. Bb2 {[%clk 0:01:27]} 15... Bxb2 {[%clk
0:02:15.7]} 16. Rxb2 {[%clk 0:01:27.4]} 16... Qf6 {[%clk 0:02:15.5]} 17. Rd2
{[%clk 0:01:25.7]} 17... Rac8 {[%clk 0:01:59]} 18. Qa4 {[%clk 0:01:16.7]} 18...
a5 {[%clk 0:01:55.7]} 19. bxa5 {[%clk 0:01:08.2]} 19... Nxa5 {[%clk 0:01:53.4]}
20. Rb1 {[%clk 0:01:08.7]} 20... Rb8 {[%clk 0:01:46.8]} 21. Rdb2 {[%clk
0:01:08.3]} 21... Qd8 {[%clk 0:01:39]} 22. Nf4 {[%clk 0:01:03.4]} 22... Nxf4
{[%clk 0:01:33.7]} 23. exf4 {[%clk 0:01:04.3]} 23... Bd7 {[%clk 0:01:29.6]} 24.
Qc2 {[%clk 0:00:57.5]} 24... Nc6 {[%clk 0:01:30]} 25. Qc3 {[%clk 0:00:55.5]}
25... h6 {[%clk 0:01:25.7]} 26. h4 {[%clk 0:00:52.8]} 26... Kh7 {[%clk
0:01:21.2]} 27. Bc2 {[%clk 0:00:42.3]} 27... Be6 {[%clk 0:01:18.3]} 28. Ba4
{[%clk 0:00:40.9]} 28... Na5 {[%clk 0:01:18.3]} 29. Bb5 {[%clk 0:00:32.7]} 29...
Qf6 {[%clk 0:01:17.9]} 30. Qxf6 {[%clk 0:00:26.5]} 30... Rxf6 {[%clk 0:01:18.8]}
31. Nd2 {[%clk 0:00:26.4]} 31... Bf7 {[%clk 0:01:08.3]} 32. Kf1 {[%clk 0:00:24]}
32... Ra8 {[%clk 0:01:00.8]} 33. Re1 {[%clk 0:00:22.6]} 33... Ra7 {[%clk
0:00:59.5]} 34. Re3 {[%clk 0:00:19.5]} 34... Kg7 {[%clk 0:00:59]} 35. Rd3 {[%clk
0:00:18.9]} 35... Bg8 {[%clk 0:00:51.8]} 36. Rc2 {[%clk 0:00:19.1]} 36... Re6
{[%clk 0:00:45.2]} 37. a4 {[%clk 0:00:18.3]} 37... Kf8 {[%clk 0:00:42.5]} 38. g3
{[%clk 0:00:18.6]} 38... Ke7 {[%clk 0:00:42.7]} 39. Nb3 {[%clk 0:00:18.9]} 39...
Nxb3 {[%clk 0:00:36.8]} 40. Rxb3 {[%clk 0:00:19.8]} 40... Re4 {[%clk 0:00:35.2]}
41. Rd3 {[%clk 0:00:18.2]} 41... Be6 {[%clk 0:00:29.5]} 42. f3 {[%clk
0:00:16.5]} 42... Rd4 {[%clk 0:00:28.9]} 43. Rxd4 {[%clk 0:00:17.1]} 43... cxd4
{[%clk 0:00:29.8]} 44. Rd2 {[%clk 0:00:16.3]} 44... d5 {[%clk 0:00:25.7]} 45.
cxd5 {[%clk 0:00:15.2]} 45... Bxd5 {[%clk 0:00:25.6]} 46. Kf2 {[%clk 0:00:15.4]}
46... Rc7 {[%clk 0:00:24.5]} 47. Rxd4 {[%clk 0:00:15.7]} 1/2-1/2

[Event "Early-Titled-Tuesday-Blitz-January-16-2024"]
[Site "Chess.com"]
[Date "2024.01.16"]
[Round "7"]
[White "shimastream"]
[Black "sokidze"]
[Result "0-1"]
[WhiteElo "3010"]
[BlackElo "2822"]
[TimeControl "180+1"]
[EndTime "9:22:22 PST"]
[Termination "sokidze won by resignation"]

1. d4 {[%clk 0:03:00.9]} 1... d5 {[%clk 0:03:00.1]} 2. c4 {[%clk 0:02:55]} 2...
e6 {[%clk 0:03:00.4]} 3. Nc3 {[%clk 0:02:53.3]} 3... a6 {[%clk 0:03:00.7]} 4. c5
{[%clk 0:02:43.9]} 4... e5 {[%clk 0:02:59.7]} 5. e3 {[%clk 0:02:39.8]} 5... Nc6
{[%clk 0:02:58.1]} 6. Nf3 {[%clk 0:02:26.3]} 6... e4 {[%clk 0:02:43.8]} 7. Ng1
{[%clk 0:02:21.9]} 7... Nf6 {[%clk 0:02:32.7]} 8. Rb1 {[%clk 0:02:18.8]} 8... h5
{[%clk 0:02:22.4]} 9. b4 {[%clk 0:02:16.9]} 9... h4 {[%clk 0:02:14.8]} 10. h3
{[%clk 0:02:13.5]} 10... g6 {[%clk 0:02:11.9]} 11. Nge2 {[%clk 0:02:12.2]} 11...
Bg7 {[%clk 0:02:04.8]} 12. a4 {[%clk 0:02:09.3]} 12... Ne7 {[%clk 0:02:02.5]}
13. Bd2 {[%clk 0:02:01.7]} 13... g5 {[%clk 0:01:59.6]} 14. Nc1 {[%clk
0:02:00.2]} 14... Ng6 {[%clk 0:01:57.7]} 15. Nb3 {[%clk 0:01:57.2]} 15... g4
{[%clk 0:01:48.5]} 16. b5 {[%clk 0:01:39]} 16... axb5 {[%clk 0:01:40.3]} 17.
Nxb5 {[%clk 0:01:39.1]} 17... g3 {[%clk 0:01:32.1]} 18. fxg3 {[%clk 0:01:38.4]}
18... Nh5 {[%clk 0:01:25.6]} 19. Ba5 {[%clk 0:01:08.7]} 19... Rxa5 {[%clk
0:01:19.7]} 20. Nxa5 {[%clk 0:01:09.6]} 20... Nxg3 {[%clk 0:01:19.6]} 21. Rg1
{[%clk 0:01:07.5]} 21... O-O {[%clk 0:01:19.1]} 22. Nc3 {[%clk 0:00:49]} 22...
c6 {[%clk 0:00:53.6]} 23. Nxb7 {[%clk 0:00:43.5]} 23... Bxb7 {[%clk 0:00:50.3]}
24. Rxb7 {[%clk 0:00:44.4]} 24... f5 {[%clk 0:00:39.8]} 25. Ne2 {[%clk
0:00:26.3]} 25... Qg5 {[%clk 0:00:34]} 26. Qd2 {[%clk 0:00:24.3]} 26... f4
{[%clk 0:00:32.6]} 27. exf4 {[%clk 0:00:15.5]} 27... Nxf4 {[%clk 0:00:32.4]} 28.
Nxf4 {[%clk 0:00:16.4]} 28... Rxf4 {[%clk 0:00:31.3]} 29. Ba6 {[%clk 0:00:07.8]}
29... e3 {[%clk 0:00:22]} 30. Qd3 {[%clk 0:00:04.7]} 30... Ne4 {[%clk
0:00:17.2]} 31. Qe2 {[%clk 0:00:02.8]} 31... Qg3+ {[%clk 0:00:15.8]} 32. Kd1
{[%clk 0:00:02.8]} 32... Nc3+ {[%clk 0:00:16.5]} 33. Kc2 {[%clk 0:00:03.4]}
33... Nxe2 {[%clk 0:00:17.1]} 34. Bxe2 {[%clk 0:00:04.2]} 34... Qf2 {[%clk
0:00:15.2]} 35. Rb8+ {[%clk 0:00:03.1]} 35... Kh7 {[%clk 0:00:15.4]} 0-1

[Event "Early-Titled-Tuesday-Blitz-January-16-2024"]
[Site "Chess.com"]
[Date "2024.01.16"]
[Round "7"]
[White "Legendinunknown"]
[Black "BogdanDeac"]
[Result "1-0"]
[WhiteElo "2822"]
[BlackElo "3008"]
[TimeControl "180+1"]
[EndTime "9:22:24 PST"]
[Termination "Legendinunknown won on time"]

1. d4 {[%clk 0:03:00.9]} 1... Nf6 {[%clk 0:02:57.9]} 2. c4 {[%clk 0:03:01.2]}
2... e6 {[%clk 0:02:58.2]} 3. Nc3 {[%clk 0:03:01.9]} 3... d5 {[%clk 0:02:56.9]}
4. cxd5 {[%clk 0:03:01.9]} 4... exd5 {[%clk 0:02:57.8]} 5. Bg5 {[%clk
0:03:01.9]} 5... Be7 {[%clk 0:02:58]} 6. e3 {[%clk 0:03:02.1]} 6... h6 {[%clk
0:02:58.4]} 7. Bh4 {[%clk 0:03:01.8]} 7... Bg4 {[%clk 0:02:59]} 8. Qb3 {[%clk
0:02:59.5]} 8... Nbd7 {[%clk 0:02:56.1]} 9. Bd3 {[%clk 0:02:55.9]} 9... O-O
{[%clk 0:02:53.7]} 10. Nge2 {[%clk 0:02:55.5]} 10... c5 {[%clk 0:02:37.9]} 11.
Bxf6 {[%clk 0:02:51.3]} 11... Nxf6 {[%clk 0:02:37.6]} 12. dxc5 {[%clk 0:02:51]}
12... Bxc5 {[%clk 0:02:26.7]} 13. O-O {[%clk 0:02:50.7]} 13... Qd6 {[%clk
0:02:07.4]} 14. h3 {[%clk 0:02:30.8]} 14... Be6 {[%clk 0:02:06.3]} 15. Nd4
{[%clk 0:02:30.4]} 15... a6 {[%clk 0:01:57.5]} 16. Nce2 {[%clk 0:02:25]} 16...
Bb6 {[%clk 0:01:50.2]} 17. Rad1 {[%clk 0:02:24.5]} 17... Bc7 {[%clk 0:01:46.6]}
18. Ng3 {[%clk 0:02:16.9]} 18... Nh5 {[%clk 0:01:40.2]} 19. Nde2 {[%clk
0:02:16.9]} 19... Nxg3 {[%clk 0:01:26.5]} 20. Nxg3 {[%clk 0:02:17]} 20... b5
{[%clk 0:01:26.5]} 21. Rfe1 {[%clk 0:02:16]} 21... Rac8 {[%clk 0:01:25.4]} 22.
Bb1 {[%clk 0:02:13.3]} 22... Rfd8 {[%clk 0:01:14.9]} 23. Qd3 {[%clk 0:02:12.7]}
23... g6 {[%clk 0:01:14.7]} 24. Qd4 {[%clk 0:02:02.5]} 24... h5 {[%clk
0:00:26.5]} 25. a3 {[%clk 0:01:12.5]} 25... Bb8 {[%clk 0:00:25.8]} 26. Ba2
{[%clk 0:00:51.7]} 26... a5 {[%clk 0:00:23.3]} 27. Rd2 {[%clk 0:00:50.8]} 27...
b4 {[%clk 0:00:21.1]} 28. a4 {[%clk 0:00:46.9]} 28... Qe7 {[%clk 0:00:14]} 29.
Red1 {[%clk 0:00:45.4]} 29... Bxg3 {[%clk 0:00:06.5]} 30. fxg3 {[%clk
0:00:46.3]} 30... Re8 {[%clk 0:00:05.1]} 31. Qf4 {[%clk 0:00:43.3]} 31... Qc5
{[%clk 0:00:02.6]} 32. Kf2 {[%clk 0:00:39.5]} 32... Qb6 {[%clk 0:00:02.3]} 33.
Bxd5 {[%clk 0:00:32.6]} 33... Bxd5 {[%clk 0:00:02.6]} 34. Rxd5 {[%clk
0:00:33.5]} 34... Qc6 {[%clk 0:00:03]} 35. Rd7 {[%clk 0:00:22.2]} 35... Rf8
{[%clk 0:00:02.6]} 36. R1d6 {[%clk 0:00:20.7]} 36... Qxa4 {[%clk 0:00:02.1]} 37.
Rd2 {[%clk 0:00:16.7]} 1-0

[Event "Early-Titled-Tuesday-Blitz-January-16-2024"]
[Site "Chess.com"]
[Date "2024.01.16"]
[Round "7"]
[White "JonasEilenberg"]
[Black "iwanyu"]
[Result "1/2-1/2"]
[WhiteElo "2544"]
[BlackElo "2680"]
[TimeControl "180+1"]
[EndTime "9:22:24 PST"]
[Termination "Game drawn by repetition"]

1. d4 {[%clk 0:03:00.9]} 1... Nf6 {[%clk 0:02:59.8]} 2. Nc3 {[%clk 0:03:00.3]}
2... d5 {[%clk 0:02:59.4]} 3. Bf4 {[%clk 0:03:00.9]} 3... g6 {[%clk 0:02:59.8]}
4. e3 {[%clk 0:03:00.2]} 4... Bg7 {[%clk 0:03:00.3]} 5. h4 {[%clk 0:02:56.2]}
5... h5 {[%clk 0:03:00.3]} 6. Nf3 {[%clk 0:02:52.2]} 6... O-O {[%clk 0:03:00.5]}
7. Ne5 {[%clk 0:02:52.5]} 7... c5 {[%clk 0:03:00.3]} 8. Bd3 {[%clk 0:02:49.6]}
8... Nc6 {[%clk 0:02:56]} 9. Nxc6 {[%clk 0:02:39.4]} 9... bxc6 {[%clk
0:02:55.9]} 10. dxc5 {[%clk 0:02:40.1]} 10... Ng4 {[%clk 0:02:44.1]} 11. Na4
{[%clk 0:02:31]} 11... e5 {[%clk 0:02:28.6]} 12. Bg3 {[%clk 0:02:30.6]} 12... e4
{[%clk 0:02:27.7]} 13. Be2 {[%clk 0:02:28.6]} 13... Qa5+ {[%clk 0:02:27.3]} 14.
c3 {[%clk 0:02:28.8]} 14... Ba6 {[%clk 0:02:26.7]} 15. Bxg4 {[%clk 0:02:13.1]}
15... hxg4 {[%clk 0:02:25.7]} 16. b4 {[%clk 0:02:13.6]} 16... Qb5 {[%clk
0:02:20.8]} 17. Qc2 {[%clk 0:02:08.3]} 17... Rfe8 {[%clk 0:02:09.7]} 18. Nb2
{[%clk 0:02:08]} 18... Qb7 {[%clk 0:01:43.5]} 19. a4 {[%clk 0:02:06.4]} 19...
Rad8 {[%clk 0:01:41]} 20. O-O-O {[%clk 0:02:03.1]} 20... Bd3 {[%clk 0:01:21]}
21. Nxd3 {[%clk 0:01:52]} 21... exd3 {[%clk 0:01:21.9]} 22. Qxd3 {[%clk
0:01:52.9]} 22... a5 {[%clk 0:01:20.7]} 23. b5 {[%clk 0:01:49]} 23... Rc8 {[%clk
0:01:12.4]} 24. b6 {[%clk 0:01:48.9]} 24... Re4 {[%clk 0:01:11.6]} 25. h5 {[%clk
0:01:46]} 25... Rc4 {[%clk 0:01:05.7]} 26. Kc2 {[%clk 0:01:37.9]} 26... Rxc5
{[%clk 0:00:59]} 27. hxg6 {[%clk 0:01:31.4]} 27... Rxc3+ {[%clk 0:00:31.1]} 28.
Qxc3 {[%clk 0:01:32.3]} 28... Bxc3 {[%clk 0:00:31.4]} 29. Kxc3 {[%clk
0:01:33.2]} 29... Qxb6 {[%clk 0:00:26]} 30. gxf7+ {[%clk 0:01:24]} 30... Kxf7
{[%clk 0:00:21.7]} 31. Rb1 {[%clk 0:01:24.6]} 31... Qc5+ {[%clk 0:00:21.3]} 32.
Kd2 {[%clk 0:01:25.4]} 32... Kg6 {[%clk 0:00:18]} 33. Bf4 {[%clk 0:01:23.9]}
33... Rf8 {[%clk 0:00:13.2]} 34. Rh6+ {[%clk 0:01:21.8]} 34... Kg7 {[%clk
0:00:13.3]} 35. Re6 {[%clk 0:01:07.1]} 35... Rxf4 {[%clk 0:00:13.1]} 36. exf4
{[%clk 0:01:08]} 36... Qxf2+ {[%clk 0:00:13.1]} 37. Kd3 {[%clk 0:01:06.7]} 37...
Qg3+ {[%clk 0:00:11.9]} 38. Kd4 {[%clk 0:01:03.1]} 38... Qxf4+ {[%clk
0:00:11.7]} 39. Kc5 {[%clk 0:01:03.6]} 39... Qc4+ {[%clk 0:00:10.7]} 40. Kd6
{[%clk 0:01:02.9]} 40... d4 {[%clk 0:00:05.3]} 41. Rb7+ {[%clk 0:00:59.6]} 41...
Kf8 {[%clk 0:00:05.5]} 42. Rf6+ {[%clk 0:00:58.5]} 42... Kg8 {[%clk 0:00:05.3]}
43. Rg6+ {[%clk 0:00:54.6]} 43... Kf8 {[%clk 0:00:05.6]} 44. Rf6+ {[%clk
0:00:50.4]} 44... Kg8 {[%clk 0:00:05.7]} 45. Rg6+ {[%clk 0:00:36.3]} 45... Kf8
{[%clk 0:00:05.6]} 46. Rf6+ {[%clk 0:00:28]} 1/2-1/2

[Event "Early-Titled-Tuesday-Blitz-January-16-2024"]
[Site "Chess.com"]
[Date "2024.01.16"]
[Round "7"]
[White "otrov-11"]
[Black "Kildepiotr"]
[Result "1-0"]
[WhiteElo "2489"]
[BlackElo "2654"]
[TimeControl "180+1"]
[EndTime "9:22:24 PST"]
[Termination "otrov-11 won by checkmate"]

1. d4 {[%clk 0:03:00.9]} 1... c5 {[%clk 0:02:58.1]} 2. d5 {[%clk 0:03:01]} 2...
e5 {[%clk 0:02:58.4]} 3. Nc3 {[%clk 0:03:00.1]} 3... d6 {[%clk 0:02:58.9]} 4. e4
{[%clk 0:02:59.9]} 4... Be7 {[%clk 0:02:59.5]} 5. Bb5+ {[%clk 0:02:59.8]} 5...
Nd7 {[%clk 0:02:59.3]} 6. Nf3 {[%clk 0:02:58.8]} 6... a6 {[%clk 0:02:59.5]} 7.
Be2 {[%clk 0:02:58.7]} 7... b5 {[%clk 0:02:59.6]} 8. O-O {[%clk 0:02:58.5]} 8...
Ngf6 {[%clk 0:02:59.3]} 9. Ne1 {[%clk 0:02:57.8]} 9... b4 {[%clk 0:02:59.1]} 10.
Nb1 {[%clk 0:02:56]} 10... Nxe4 {[%clk 0:02:59.4]} 11. f4 {[%clk 0:02:56.9]}
11... exf4 {[%clk 0:02:55.4]} 12. Bxf4 {[%clk 0:02:57.8]} 12... O-O {[%clk
0:02:50.6]} 13. Bd3 {[%clk 0:02:56.1]} 13... Nef6 {[%clk 0:02:49]} 14. c4 {[%clk
0:02:49.8]} 14... Re8 {[%clk 0:02:46.9]} 15. Nd2 {[%clk 0:02:46.3]} 15... Bf8
{[%clk 0:02:46.8]} 16. Nef3 {[%clk 0:02:46.6]} 16... g6 {[%clk 0:02:40.2]} 17.
Ng5 {[%clk 0:02:38.8]} 17... Ne5 {[%clk 0:02:36.7]} 18. Bc2 {[%clk 0:02:33.9]}
18... Bg7 {[%clk 0:02:30.3]} 19. Rb1 {[%clk 0:02:23.6]} 19... Nh5 {[%clk
0:02:27.8]} 20. Bxe5 {[%clk 0:02:21.3]} 20... Bxe5 {[%clk 0:01:58.3]} 21. Nxf7
{[%clk 0:00:53.1]} 21... Bd4+ {[%clk 0:01:57.7]} 22. Kh1 {[%clk 0:00:53.8]}
22... Qh4 {[%clk 0:01:58]} 23. Qf3 {[%clk 0:00:38.2]} 23... Bg4 {[%clk
0:01:56.3]} 24. Nh6+ {[%clk 0:00:37.4]} 24... Kg7 {[%clk 0:01:56.2]} 25. Nxg4
{[%clk 0:00:38.3]} 25... Rf8 {[%clk 0:01:51.7]} 26. Qh3 {[%clk 0:00:34.6]} 26...
Rxf1+ {[%clk 0:01:18.6]} 27. Rxf1 {[%clk 0:00:33]} 27... Qe7 {[%clk 0:01:09.5]}
28. Ne4 {[%clk 0:00:19.2]} 28... Bxb2 {[%clk 0:01:05.3]} 29. Qe3 {[%clk
0:00:17]} 29... Re8 {[%clk 0:00:58.6]} 30. Qd2 {[%clk 0:00:16.7]} 30... Bd4
{[%clk 0:00:57.4]} 31. Ng5 {[%clk 0:00:16.5]} 31... Nf6 {[%clk 0:00:52.4]} 32.
Ne6+ {[%clk 0:00:16.3]} 32... Kg8 {[%clk 0:00:52.8]} 33. Nxf6+ {[%clk
0:00:14.7]} 33... Bxf6 {[%clk 0:00:53.7]} 34. g3 {[%clk 0:00:12.6]} 34... Rb8
{[%clk 0:00:48.7]} 35. Qh6 {[%clk 0:00:11.9]} 35... a5 {[%clk 0:00:45.6]} 36. h4
{[%clk 0:00:09.9]} 36... a4 {[%clk 0:00:42.2]} 37. h5 {[%clk 0:00:10.3]} 37...
b3 {[%clk 0:00:38.6]} 38. axb3 {[%clk 0:00:11.2]} 38... axb3 {[%clk 0:00:38.8]}
39. Bb1 {[%clk 0:00:11.6]} 39... Bg7 {[%clk 0:00:36.3]} 40. Qf4 {[%clk
0:00:09.1]} 40... Be5 {[%clk 0:00:35.1]} 41. Qg4 {[%clk 0:00:09]} 41... Ra8
{[%clk 0:00:27]} 42. hxg6 {[%clk 0:00:08.8]} 42... h6 {[%clk 0:00:27.3]} 43. g7
{[%clk 0:00:07.4]} 43... Bf6 {[%clk 0:00:25.7]} 44. Qg6 {[%clk 0:00:07.5]} 44...
Bxg7 {[%clk 0:00:25]} 45. Qh7# {[%clk 0:00:07.7]} 1-0

[Event "Early-Titled-Tuesday-Blitz-January-16-2024"]
[Site "Chess.com"]
[Date "2024.01.16"]
[Round "7"]
[White "Nuvas"]
[Black "Dinosaurio_1975"]
[Result "1-0"]
[WhiteElo "2793"]
[BlackElo "2633"]
[TimeControl "180+1"]
[EndTime "9:22:27 PST"]
[Termination "Nuvas won by checkmate"]

1. d4 {[%clk 0:03:00.9]} 1... d5 {[%clk 0:02:58.7]} 2. c4 {[%clk 0:03:01.1]}
2... e6 {[%clk 0:02:58.1]} 3. Nc3 {[%clk 0:03:01.4]} 3... Nf6 {[%clk 0:02:58.2]}
4. cxd5 {[%clk 0:03:01.5]} 4... exd5 {[%clk 0:02:59.1]} 5. Bg5 {[%clk
0:03:01.9]} 5... c6 {[%clk 0:02:58.8]} 6. e3 {[%clk 0:03:02.3]} 6... h6 {[%clk
0:02:59.1]} 7. Bh4 {[%clk 0:03:02.6]} 7... Be7 {[%clk 0:02:59]} 8. Bd3 {[%clk
0:03:02.9]} 8... O-O {[%clk 0:02:57.3]} 9. Bg3 {[%clk 0:03:02.8]} 9... Re8
{[%clk 0:02:55.8]} 10. h3 {[%clk 0:03:03]} 10... Nbd7 {[%clk 0:02:55.3]} 11.
Nge2 {[%clk 0:03:01.9]} 11... Nf8 {[%clk 0:02:51.1]} 12. O-O {[%clk 0:03:01.5]}
12... Bd6 {[%clk 0:02:48]} 13. Rc1 {[%clk 0:03:01.4]} 13... Nh5 {[%clk
0:02:47.1]} 14. Bxd6 {[%clk 0:02:57.3]} 14... Qxd6 {[%clk 0:02:48]} 15. Qc2
{[%clk 0:02:49.9]} 15... g6 {[%clk 0:02:42.6]} 16. e4 {[%clk 0:02:28.1]} 16...
dxe4 {[%clk 0:02:42.3]} 17. Nxe4 {[%clk 0:02:29]} 17... Qd8 {[%clk 0:02:39.3]}
18. Rcd1 {[%clk 0:02:01.4]} 18... Nf6 {[%clk 0:02:36.9]} 19. N2c3 {[%clk
0:01:58.9]} 19... Nxe4 {[%clk 0:02:18.6]} 20. Bxe4 {[%clk 0:01:58.7]} 20... Be6
{[%clk 0:02:09]} 21. d5 {[%clk 0:01:58.9]} 21... cxd5 {[%clk 0:02:09.2]} 22.
Bxd5 {[%clk 0:01:59.1]} 22... Bxd5 {[%clk 0:02:08.2]} 23. Nxd5 {[%clk
0:01:59.4]} 23... Rc8 {[%clk 0:02:03]} 24. Qb3 {[%clk 0:01:59.4]} 24... b6
{[%clk 0:01:43.6]} 25. Qa4 {[%clk 0:01:59.5]} 25... Kg7 {[%clk 0:01:23.5]} 26.
Qxa7 {[%clk 0:01:48.4]} 26... Ra8 {[%clk 0:01:23.2]} 27. Qb7 {[%clk 0:01:32.3]}
27... Rxa2 {[%clk 0:01:21.2]} 28. Qc6 {[%clk 0:01:32.4]} 28... Ra5 {[%clk
0:00:34.1]} 29. Qc3+ {[%clk 0:01:26.8]} 29... f6 {[%clk 0:00:34.2]} 30. Nc7
{[%clk 0:01:24.4]} 30... Qc8 {[%clk 0:00:17.1]} 31. Nxe8+ {[%clk 0:01:23.9]}
31... Qxe8 {[%clk 0:00:18]} 32. Qc7+ {[%clk 0:01:22.8]} 32... Qf7 {[%clk
0:00:17.4]} 33. Qxb6 {[%clk 0:01:22.4]} 33... Rg5 {[%clk 0:00:16.6]} 34. Rfe1
{[%clk 0:01:21.4]} 34... h5 {[%clk 0:00:16.4]} 35. Rc1 {[%clk 0:01:14.4]} 35...
Kh6 {[%clk 0:00:13.7]} 36. Qe3 {[%clk 0:01:10.4]} 36... Qd5 {[%clk 0:00:12.6]}
37. f3 {[%clk 0:01:07.5]} 37... h4 {[%clk 0:00:11.2]} 38. Rcd1 {[%clk
0:01:01.9]} 38... Qf5 {[%clk 0:00:09.4]} 39. Rd4 {[%clk 0:00:59.5]} 39... Kh5
{[%clk 0:00:06.1]} 40. Kh1 {[%clk 0:00:42.1]} 40... Nh7 {[%clk 0:00:05]} 41. Qe4
{[%clk 0:00:40]} 41... Qxe4 {[%clk 0:00:04.6]} 42. Rexe4 {[%clk 0:00:40.9]}
42... Kh6 {[%clk 0:00:01.3]} 43. Rxh4+ {[%clk 0:00:41]} 43... Rh5 {[%clk
0:00:01.9]} 44. Rxh5+ {[%clk 0:00:41.5]} 44... Kxh5 {[%clk 0:00:02.6]} 45. b4
{[%clk 0:00:41.9]} 45... Ng5 {[%clk 0:00:03.1]} 46. b5 {[%clk 0:00:41.3]} 46...
Ne6 {[%clk 0:00:03.8]} 47. Rd7 {[%clk 0:00:40.1]} 47... g5 {[%clk 0:00:03.9]}
48. b6 {[%clk 0:00:40.1]} 48... Kh4 {[%clk 0:00:02.5]} 49. Kh2 {[%clk
0:00:39.2]} 49... Nc5 {[%clk 0:00:02.9]} 50. Rh7# {[%clk 0:00:39.2]} 1-0

[Event "Early-Titled-Tuesday-Blitz-January-16-2024"]
[Site "Chess.com"]
[Date "2024.01.16"]
[Round "7"]
[White "the_blue_pill"]
[Black "Kotlyar_K"]
[Result "1-0"]
[WhiteElo "2346"]
[BlackElo "2523"]
[TimeControl "180+1"]
[EndTime "9:22:27 PST"]
[Termination "the_blue_pill won by resignation"]

1. b3 {[%clk 0:03:00.9]} 1... Nf6 {[%clk 0:02:55.9]} 2. Bb2 {[%clk 0:03:01.1]}
2... g6 {[%clk 0:02:56.6]} 3. Bxf6 {[%clk 0:03:01.6]} 3... exf6 {[%clk
0:02:57.5]} 4. e3 {[%clk 0:03:02]} 4... d5 {[%clk 0:02:56.1]} 5. d4 {[%clk
0:03:00.9]} 5... Bg7 {[%clk 0:02:53.2]} 6. Ne2 {[%clk 0:02:59.4]} 6... O-O
{[%clk 0:02:53.7]} 7. g3 {[%clk 0:02:59.4]} 7... c5 {[%clk 0:02:51.4]} 8. c3
{[%clk 0:02:58.5]} 8... Nc6 {[%clk 0:02:50.1]} 9. Bg2 {[%clk 0:02:59.1]} 9... f5
{[%clk 0:02:42.1]} 10. O-O {[%clk 0:02:56.5]} 10... Be6 {[%clk 0:02:40.9]} 11.
a3 {[%clk 0:02:38.7]} 11... Rc8 {[%clk 0:02:34.8]} 12. b4 {[%clk 0:02:36.7]}
12... c4 {[%clk 0:02:33.2]} 13. Nd2 {[%clk 0:02:31.6]} 13... a5 {[%clk
0:02:29.6]} 14. Qa4 {[%clk 0:02:26.4]} 14... axb4 {[%clk 0:02:29.3]} 15. axb4
{[%clk 0:02:26]} 15... Ra8 {[%clk 0:02:22.8]} 16. Qb5 {[%clk 0:02:20.2]} 16...
Qd7 {[%clk 0:02:22]} 17. Nf4 {[%clk 0:02:17.9]} 17... Rad8 {[%clk 0:02:06.3]}
18. Ra2 {[%clk 0:01:41.9]} 18... g5 {[%clk 0:02:05.4]} 19. Nh5 {[%clk
0:01:34.1]} 19... Nxd4 {[%clk 0:01:41.6]} 20. Qxd7 {[%clk 0:01:27.1]} 20... Ne2+
{[%clk 0:01:41.5]} 21. Kh1 {[%clk 0:01:27.1]} 21... Rxd7 {[%clk 0:01:42.2]} 22.
Nxg7 {[%clk 0:01:25.8]} 22... Kxg7 {[%clk 0:01:42.2]} 23. Rc2 {[%clk 0:01:22.6]}
23... f4 {[%clk 0:01:18.3]} 24. Nb1 {[%clk 0:01:20.5]} 24... fxg3 {[%clk
0:00:51.8]} 25. Rxe2 {[%clk 0:01:12.8]} 25... gxh2 {[%clk 0:00:52.2]} 26. Nd2
{[%clk 0:01:04.4]} 26... Ra8 {[%clk 0:00:52.6]} 27. Nf3 {[%clk 0:01:03.7]} 27...
Ra3 {[%clk 0:00:52]} 28. Rc1 {[%clk 0:01:03.3]} 28... Rd8 {[%clk 0:00:43.1]} 29.
Nxg5 {[%clk 0:00:59.7]} 29... Rda8 {[%clk 0:00:40.3]} 30. Nxe6+ {[%clk
0:00:48.9]} 30... fxe6 {[%clk 0:00:39.8]} 31. Kxh2 {[%clk 0:00:49.8]} 31... Kf6
{[%clk 0:00:33.2]} 32. e4 {[%clk 0:00:48]} 32... Rd8 {[%clk 0:00:29.3]} 33. exd5
{[%clk 0:00:47.5]} 33... exd5 {[%clk 0:00:30.2]} 34. Rd2 {[%clk 0:00:47.3]}
34... b5 {[%clk 0:00:17]} 35. Rxd5 {[%clk 0:00:44.5]} 35... Rxd5 {[%clk
0:00:16.1]} 36. Bxd5 {[%clk 0:00:43.9]} 36... Ra6 {[%clk 0:00:15.4]} 37. Rd1
{[%clk 0:00:37.8]} 37... Ke5 {[%clk 0:00:14]} 38. Bg2 {[%clk 0:00:31.1]} 38...
Rf6 {[%clk 0:00:13]} 39. Rd5+ {[%clk 0:00:29.5]} 39... Ke6 {[%clk 0:00:12.2]}
40. Kg1 {[%clk 0:00:24]} 40... Ke7 {[%clk 0:00:09.6]} 41. Rxb5 {[%clk
0:00:23.3]} 41... Rf4 {[%clk 0:00:09.8]} 42. Rb7+ {[%clk 0:00:20.6]} 1-0